bitfinex-derivatives/quotes_ETHF0:USTF0_20250505
["timestamp","ask_amount","ask_price","bid_price","bid_amount"]
[1746447308132,7.33881,1808.2,1808.1,3.91428771]
[1746447308528,12.33881,1808.2,1808.1,0.70648771]
[1746447308732,1.10613,1808.0,1807.9,3.2078]
[1746447309240,4.83813,1808.0,1807.9,3.2078]
[1746447309440,6.57323,1808.0,1807.9,3.2078]
[1746447310340,6.602632,1808.0,1807.9,3.2078]
[1746447311537,6.602632,1808.0,1807.6,1.10633]
[1746447311538,1.10626,1807.8,1807.7,3.2078]
[1746447311940,4.41416,1807.8,1807.7,4.31412]
[1746447312136,8.14616,1807.8,1807.7,3.2078]
[1746447312852,8.21629911,1807.8,1807.7,3.2078]
[1746447314751,8.24106509,1807.8,1807.7,3.2078]
[1746447316351,1.10632,1807.7,1807.6,1.10633]
[1746447316548,2.70362,1807.7,1807.6,4.31413]
[1746447316750,2.79852509,1807.7,1807.6,4.31413]
[1746447316947,2.82329107,1807.7,1807.6,3.2078]
[1746447317253,1.10644,1807.5,1807.4,3.2078]
[1746447317452,1.10644,1807.5,1807.4,4.3143]
[1746447317949,0.11967107,1807.5,1807.4,4.3143]
[1746447318150,3.85167107,1807.5,1807.4,4.3143]
[1746447318350,5.52953705,1807.5,1807.4,6.776]
[1746447319054,6.63597705,1807.5,1807.4,6.776]
[1746447319248,6.63597705,1807.5,1807.4,4.3143]
[1746447319750,6.66914525,1807.5,1807.4,4.3143]
[1746447319953,6.66914525,1807.5,1807.4,3.2078]
[1746447320355,6.70231345,1807.5,1807.4,3.2078]
[1746447321255,6.70231345,1807.5,1807.4,4.3143]
[1746447321553,6.70231345,1807.5,1807.4,3.2078]
[1746447322157,1.10656,1807.3,1807.2,3.2078]
[1746447322356,1.31733345,1807.3,1807.2,3.2078]
[1746447322854,2.94423345,1807.3,1807.2,3.2078]
[1746447323252,6.67623345,1807.3,1807.2,3.2078]
[1746447325759,6.67623345,1807.3,1807.2,4.31442]
[1746447325949,5.56967345,1807.3,1807.2,4.31442]
[1746447326152,6.67623345,1807.3,1807.2,4.31442]
[1746447326351,6.67623345,1807.3,1807.2,5.10612]
[1746447328657,6.67623345,1807.3,1807.2,3.2078]
[1746447329559,1.10675,1807.0,1806.9,4.31456]
[1746447330158,4.83875,1807.0,1806.9,4.31456]
[1746447330554,6.75182345,1807.0,1806.9,4.31456]
[1746447330755,5.64507345,1807.0,1806.9,4.31456]
[1746447331662,6.75182345,1807.0,1806.9,4.31456]
[1746447331862,5.64507345,1807.0,1806.9,4.31456]
[1746447332162,0.21077345,1807.0,1806.9,11.77006]
[1746447334158,1.5694,1807.4,1807.3,1.10656]
[1746447334359,1.5694,1807.4,1807.3,4.31436]
[1746447334962,1.5694,1807.4,1807.3,5.98396]
[1746447335167,5.3014,1807.4,1807.3,5.98396]
[1746447335366,3.732,1807.4,1807.3,5.98396]
[1746447336267,1.5975,1807.7,1807.6,1.10638]
[1746447336564,2.70382,1807.7,1807.6,4.31418]
[1746447337064,6.43582,1807.7,1807.6,4.31418]
[1746447338972,5.3295,1807.7,1807.6,4.31418]
[1746447339269,6.43582,1807.7,1807.6,4.31418]
[1746447339668,5.3295,1807.7,1807.6,4.31418]
[1746447340172,6.43582,1807.7,1807.6,4.31418]
[1746447343767,6.43582,1807.7,1807.6,3.2078]
[1746447343974,6.43582,1807.7,1807.6,4.31418]
[1746447346071,5.3295,1807.7,1807.6,4.31418]
[1746447347274,6.43582,1807.7,1807.6,4.31418]
[1746447347479,5.3295,1807.7,1807.6,4.31418]
[1746447347869,6.43582,1807.7,1807.6,4.31418]
[1746447348070,5.3295,1807.7,1807.6,4.31418]
[1746447349580,3.732,1807.7,1807.6,5.94578]
[1746447351480,3.732,1807.7,1807.6,10.94578]
[1746447351976,3.732,1807.7,1807.6,5.94578]
[1746447352181,3.732,1807.9,1807.8,1.10626]
[1746447352370,7.264,1807.9,1807.8,4.31406]
[1746447356285,6.1578,1807.9,1807.8,4.31406]
[1746447357185,5.309,1807.9,1807.8,4.31406]
[1746447357485,3.732,1807.9,1807.8,4.31406]
[1746447357781,3.732,1807.9,1807.8,5.15026]
[1746447359887,3.732,1807.9,1807.8,4.31406]
[1746447360077,6.4551,1807.9,1807.8,4.31406]
[1746447360382,5.3489,1807.9,1807.8,4.31406]
[1746447360883,7.0318,1807.9,1807.8,4.31406]
[1746447361577,3.732,1807.9,1807.8,4.31406]
[1746447362184,6.2263,1807.9,1807.8,4.31406]
[1746447364490,7.3325,1807.9,1807.8,4.31406]
[1746447366207,6.2263,1807.9,1807.8,4.31406]
[1746447366408,5.4149,1807.9,1807.8,4.31406]
[1746447366610,3.732,1807.9,1807.8,7.96406]
[1746447367004,3.732,1807.9,1807.8,8.81376]
[1746447368414,3.732,1807.9,1807.8,13.81376]
[1746447370705,3.732,1807.9,1807.8,8.81376]
[1746447370907,2.61017,1807.9,1807.8,19.69976]
[1746447371210,5.51774433,1808.6,1808.5,1.10583]
[1746447371404,7.18164433,1808.6,1808.5,4.31363]
[1746447372007,8.28741433,1808.6,1808.5,4.31363]
[1746447372208,12.01941433,1808.6,1808.5,4.31363]
[1746447372805,12.01941433,1808.6,1808.5,3.2078]
[1746447373106,12.01941433,1808.6,1808.5,4.31363]
[1746447373511,6.50167,1808.6,1808.5,4.31363]
[1746447374616,5.3959,1808.6,1808.5,4.31363]
[1746447374812,6.50167,1808.6,1808.5,4.31363]
[1746447375510,5.3959,1808.6,1808.5,4.31363]
[1746447376517,6.50167,1808.6,1808.5,4.31363]
[1746447376718,5.3959,1808.6,1808.5,4.31363]
[1746447378516,6.50167,1808.6,1808.5,4.31363]
[1746447383016,5.3959,1808.6,1808.5,4.31363]
[1746447383624,6.50167,1808.6,1808.5,4.31363]
[1746447385119,5.3959,1808.6,1808.5,4.31363]
[1746447386524,5.3959,1808.6,1808.5,5.15513]
[1746447387022,5.3959,1808.6,1808.5,5.98873]
[1746447387625,5.3959,1808.6,1808.5,4.31363]
[1746447389922,6.50167,1808.6,1808.5,4.31363]
[1746447390126,5.3959,1808.6,1808.5,4.31363]
[1746447392913,6.50167,1808.6,1808.5,4.31363]
[1746447393623,1.10601,1808.2,1808.1,3.2078]
[1746447394222,4.83801,1808.2,1808.1,3.2078]
[1746447394624,5.65021,1808.2,1808.1,3.2078]
[1746447396328,1.10626,1807.8,1807.7,7.3988935]
[1746447396718,1.10626,1807.8,1807.7,0.02148]
[1746447397229,6.43326,1807.8,1807.7,0.02148]
[1746447402234,1.10638,1807.6,1807.5,3.2078]
[1746447402430,1.10638,1807.6,1807.5,4.31424]
[1746447403229,4.83838,1807.6,1807.5,4.31424]
[1746447403431,5.63868,1807.6,1807.5,3.2078]
[1746447404434,5.63868,1807.6,1807.5,4.31424]
[1746447407223,3.732,1807.6,1807.5,4.31424]
[1746447408232,5.3325,1807.6,1807.5,6.79434]
[1746447409337,6.43888,1807.6,1807.5,6.79434]
[1746447411240,6.43888,1807.6,1807.5,3.2078]
[1746447412037,5.3325,1807.6,1807.5,4.31424]
[1746447412725,5.3325,1807.6,1807.5,6.68054]
[1746447414040,3.732,1807.6,1807.5,6.68054]
[1746447416238,5.3822,1807.6,1807.5,6.68054]
[1746447419143,3.732,1807.6,1807.5,6.68054]
[1746447423735,9.83838,1807.6,1807.5,3.2078]
[1746447423941,1.10657,1807.4,1807.3,4.31434]
[1746447424533,1.10666,1807.2,1807.1,3.2078]
[1746447425238,4.83866,1807.2,1807.1,3.2078]
[1746447425433,5.63466,1807.2,1807.1,3.2078]
[1746447425644,1.10672,1807.1,1807.0,1.10669]
[1746447425836,2.443,1807.1,1807.0,1.10669]
[1746447426242,6.175,1807.1,1807.0,1.10669]
[1746447426737,5.68636,1807.1,1807.0,1.10669]
[1746447426942,4.02576,1807.1,1807.0,8.02469]
[1746447428143,4.02576,1807.1,1807.0,7.16789]
[1746447428348,4.02576,1807.1,1807.0,3.52689]
[1746447428550,4.02576,1807.1,1807.0,1.10669]
[1746447429045,5.64856,1807.1,1807.0,1.10669]
[1746447431444,5.94231655,1807.1,1807.0,1.10669]
[1746447431644,6.73681655,1807.1,1807.0,1.10669]
[1746447433349,6.73681655,1807.1,1807.0,4.31449]
[1746447433547,7.84350655,1807.1,1807.0,4.31449]
[1746447434044,6.73681655,1807.1,1807.0,4.31449]
[1746447434950,5.94231655,1807.1,1807.0,4.31449]
[1746447435145,4.31951655,1807.1,1807.0,4.31449]
[1746447435451,4.31951655,1807.1,1807.0,7.95349]
[1746447435650,4.31951655,1807.1,1807.0,9.52459]
[1746447436053,4.31951655,1807.1,1807.0,7.95349]
[1746447437246,4.31951655,1807.1,1807.0,4.31449]
[1746447437755,6.05141655,1807.1,1807.0,4.31449]
[1746447437947,7.15810655,1807.1,1807.0,4.31449]
[1746447438351,6.05141655,1807.1,1807.0,4.31449]
[1746447438653,5.4639,1807.1,1807.0,4.31449]
[1746447438855,7.4518631,1807.1,1807.0,4.31449]
[1746447439454,6.3451731,1807.1,1807.0,4.31449]
[1746447441051,7.2106731,1807.1,1807.0,4.31449]
[1746447441954,8.3173631,1807.1,1807.0,4.31449]
[1746447442349,7.2106731,1807.1,1807.0,4.31449]
[1746447444656,8.3173631,1807.1,1807.0,4.31449]
[1746447450059,7.2106731,1807.1,1807.0,4.31449]
[1746447450954,6.3451731,1807.1,1807.0,4.31449]
[1746447451256,0.8812731,1807.1,1807.0,12.66009]
[1746447451663,0.8812731,1807.1,1807.0,7.66009]
[1746447452157,4.6132731,1807.1,1807.0,7.66009]
[1746447454056,3.4859931,1807.1,1807.0,12.66009]
[1746447454258,5.884,1807.4,1807.3,1.10656]
[1746447454556,5.884,1807.4,1807.3,4.31436]
[1746447455154,12.3513,1807.4,1807.3,4.31436]
[1746447455358,13.1932,1807.4,1807.3,4.31436]
[1746447455957,13.1932,1807.4,1807.3,3.2078]
[1746447456256,13.1932,1807.4,1807.3,4.31436]
[1746447456658,7.3092,1807.4,1807.3,4.31436]
[1746447457759,7.3092,1807.4,1807.3,3.2078]
[1746447457956,12.3092,1807.4,1807.3,3.2078]
[1746447458658,7.3092,1807.4,1807.3,3.2078]
[1746447459253,7.3092,1807.4,1806.4,7.3774135]
[1746447459254,21.2945,1807.4,1806.4,7.3774135]
[1746447459457,3.2078,1806.6,1806.5,1.10705]
[1746447459658,3.2078,1806.6,1806.4,1.10709]
[1746447459856,0.8503,1806.5,1806.4,1.10709]
[1746447460053,1.95737,1806.5,1806.4,1.10711]
[1746447460248,4.5823,1806.5,1806.4,1.10711]
[1746447460452,5.68935,1806.5,1806.4,1.10711]
[1746447460655,5.68935,1806.5,1806.4,2.81441]
[1746447461358,5.68935,1806.5,1806.4,1.7073]
[1746447461860,5.68935,1806.5,1806.4,2.81441]
[1746447462557,7.39895,1806.5,1806.4,2.81441]
[1746447464863,7.48463035,1806.5,1806.4,2.81441]
[1746447465060,7.48463035,1806.5,1806.4,1.7073]
[1746447465362,1.10711,1806.4,1806.3,1.10714]
[1746447465659,2.68331,1806.4,1806.3,1.10714]
[1746447465864,2.76899035,1806.4,1806.3,1.10714]
[1746447466260,6.50099035,1806.4,1806.3,1.10714]
[1746447466462,1.10718,1806.3,1806.2,2.82969]
[1746447466666,1.6019,1806.3,1806.0,3.638]
[1746447466856,1.1073,1806.1,1806.0,6.42551]
[1746447467353,7.2662,1806.1,1806.0,6.42551]
[1746447467954,7.35188035,1806.1,1806.0,6.42551]
[1746447468151,7.35188035,1806.1,1806.0,3.638]
[1746447468355,1.10736,1806.0,1805.9,1.10737]
[1746447468563,2.70926,1806.0,1805.9,1.10737]
[1746447468762,1.10742,1805.9,1805.8,2.78768]
[1746447468956,2.79500035,1805.9,1805.8,2.78768]
[1746447469266,6.52700035,1805.9,1805.8,2.78768]
[1746447469462,1.10748,1805.8,1805.7,4.3153]
[1746447469660,2.82128,1805.8,1805.7,4.3153]
[1746447470052,2.90696035,1805.8,1805.7,4.3153]
[1746447470466,1.79948035,1805.8,1805.7,4.3153]
[1746447471057,0.08568035,1805.8,1805.7,4.3153]
[1746447471254,0.08568035,1805.8,1805.7,9.6745]
[1746447472363,0.08568035,1805.8,1805.7,5.9425]
[1746447476271,0.08568035,1805.8,1805.7,2.7347]
[1746447480463,0.08568035,1805.8,1805.7,1.1075]
[1746447480670,1.69928035,1805.8,1805.7,1.1075]
[1746447481168,0.08568035,1805.8,1805.7,1.1075]
[1746447481369,0.08568035,1805.8,1805.7,4.3153]
[1746447482873,0.08568035,1805.8,1805.7,5.9015]
[1746447484175,0.825,1806.1,1806.0,1.10736]
[1746447484374,0.8104,1806.2,1806.1,1.1073]
[1746447484773,3.62274,1806.2,1806.1,1.1073]
[1746447485073,7.35474,1806.2,1806.1,1.1073]
[1746447485876,1.10736,1806.1,1806.0,1.10732]
[1746447486077,2.81246,1806.1,1806.0,1.10732]
[1746447487178,5.4371,1806.1,1806.0,1.10732]
[1746447488572,5.4371,1806.1,1806.0,2.77102]
[1746447489077,5.4371,1806.1,1805.9,0.8543]
[1746447489078,1.10742,1806.0,1805.9,1.10739]
[1746447489281,2.79622,1806.0,1805.9,1.10739]
[1746447490177,6.52822,1806.0,1805.9,1.10739]
[1746447491379,1.10747,1805.9,1805.8,1.10744]
[1746447491678,4.43067,1805.9,1805.8,1.10744]
[1746447492274,8.16267,1805.9,1805.8,1.10744]
[1746447494182,7.0552,1805.9,1805.8,1.10744]
[1746447494376,8.16262,1805.9,1805.8,1.10744]
[1746447495583,1.10752,1805.8,1805.7,1.10749]
[1746447495785,2.78802,1805.8,1805.7,1.10749]
[1746447496284,1.6805,1805.8,1805.7,1.10749]
[1746447499290,2.78798,1805.8,1805.7,1.10749]
[1746447500083,1.6805,1805.8,1805.7,1.10749]
[1746447500489,2.78798,1805.8,1805.7,1.10749]
[1746447502086,1.1076,1805.6,1805.5,4.31545]
[1746447502285,1.10767,1805.6,1805.5,1.10764]
[1746447502486,2.84469,1805.7,1805.6,1.1076]
[1746447503083,1.7371,1805.7,1805.6,1.1076]
[1746447503284,3.2078,1805.8,1805.7,1.10754]
[1746447503494,2.5366,1805.9,1805.8,1.10748]
[1746447504086,1.6794,1805.9,1805.8,1.10748]
[1746447504696,1.6794,1805.9,1805.8,2.69398]
[1746447505295,5.11354,1806.1,1806.0,1.10736]
[1746447506991,8.81038331,1806.1,1806.0,1.10736]
[1746447507191,7.70304331,1806.1,1806.0,1.10736]
[1746447507496,3.69684331,1806.1,1806.0,1.10736]
[1746447507896,3.69684331,1806.1,1806.0,2.75976]
[1746447508490,8.81727331,1806.3,1806.2,1.10724]
[1746447508690,1.10733,1806.1,1806.0,1.10734]
[1746447508891,1.10736,1806.0,1805.9,2.80469]
[1746447509090,1.10736,1806.0,1805.9,1.10739]
[1746447509302,4.83936,1806.0,1805.9,1.10739]
[1746447509994,1.10746,1805.9,1805.8,1.10746]
[1746447510200,1.91626,1805.9,1805.8,1.10746]
[1746447511100,5.64826,1805.9,1805.8,1.10746]
[1746447512103,4.5408,1805.9,1805.8,1.10746]
[1746447512399,4.5408,1805.9,1805.8,2.84266]
[1746447513197,0.8088,1805.9,1805.8,2.84266]
[1746447514601,3.69684331,1806.0,1805.9,1.10742]
[1746447514796,3.69684331,1806.0,1805.9,3.55332]
[1746447515203,7.36712327,1806.1,1806.0,1.10736]
[1746447515399,7.36712327,1806.1,1806.0,3.55756]
[1746447517402,7.36712327,1806.1,1806.0,7.19656]
[1746447518608,6.90720993,1806.4,1806.1,1.1073]
[1746447518809,8.63980993,1806.4,1806.3,1.10718]
[1746447519810,6.90720993,1806.4,1806.3,1.10718]
[1746447520008,6.90720993,1806.4,1806.3,1.89598]
[1746447520210,6.90720993,1806.4,1806.3,2.68388]
[1746447520810,3.2078,1806.4,1806.3,2.68388]
[1746447524013,3.2078,1806.4,1806.3,1.89598]
[1746447524206,4.8898,1806.4,1806.3,1.89598]
[1746447524401,1.10723,1806.3,1806.2,1.1072]
[1746447524607,2.4892,1806.3,1805.9,9.61426]
[1746447524809,1.10733,1806.1,1806.0,1.10732]
[1746447525311,4.83933,1806.1,1806.0,1.10732]
[1746447525512,6.52133,1806.1,1806.0,1.10732]
[1746447525911,1.10736,1806.0,1805.9,1.10737]
[1746447526114,1.10745,1805.9,1805.8,1.10744]
[1746447526609,2.78945,1805.9,1805.8,1.10744]
[1746447527110,6.52145,1805.9,1805.8,1.10744]
[1746447527514,1.10748,1805.8,1805.7,8.4849035]
[1746447527711,3.67568,1805.8,1805.7,8.4849035]
[1746447528214,7.40768,1805.8,1805.7,8.4849035]
[1746447528418,7.40768,1805.8,1805.7,1.10749]
[1746447528811,6.3002,1805.8,1805.7,1.10749]
[1746447529215,2.5682,1805.8,1805.7,1.10749]
[1746447529416,3.67568,1805.8,1805.7,1.10749]
[1746447529819,2.5682,1805.8,1805.7,1.10749]
[1746447530011,3.67568,1805.8,1805.7,1.10749]
[1746447531122,7.40768,1805.8,1805.7,1.10749]
[1746447532120,6.3002,1805.8,1805.7,1.10749]
[1746447532320,3.67568,1805.8,1805.7,1.10749]
[1746447533323,2.5682,1805.8,1805.7,1.10749]
[1746447533715,2.5682,1805.8,1805.7,1.91569]
[1746447534620,0.8444,1805.8,1805.7,1.91569]
[1746447535624,1.95188,1805.8,1805.7,1.91569]
[1746447536326,1.10754,1805.7,1805.6,2.78226]
[1746447536518,3.51014,1805.7,1805.6,2.78226]
[1746447536823,3.51014,1805.7,1805.6,1.10756]
[1746447539933,2.4026,1805.7,1805.6,1.10756]
[1746447540123,1.6061,1805.7,1805.6,1.10756]
[1746447540325,7.75030993,1805.9,1805.8,1.10748]
[1746447540525,4.54250993,1805.9,1805.8,1.10748]
[1746447541231,3.69940993,1805.9,1805.8,1.10748]
[1746447541529,3.69940993,1805.9,1805.8,1.89018]
[1746447542033,3.69940993,1805.9,1805.8,3.53148]
[1746447543129,3.69940993,1805.9,1805.8,6.73928]
[1746447544038,0.8431,1806.2,1806.1,1.1073]
[1746447544633,2.5541,1806.2,1806.1,1.1073]
[1746447544833,4.55100993,1806.3,1806.2,1.10724]
[1746447545335,3.69940993,1806.3,1806.2,1.10724]
[1746447545734,3.69940993,1806.3,1806.2,2.74614]
[1746447546126,3.69940993,1806.3,1806.0,9.61408]
[1746447546330,3.2078,1806.1,1805.9,1.5821]
[1746447546535,3.2078,1806.1,1805.6,2.76899]
[1746447546536,1.10742,1805.9,1805.6,3.638]
[1746447546737,1.10756,1805.7,1805.6,1.10756]
[1746447547035,2.76373,1805.8,1805.7,1.10754]
[1746447547538,2.76373,1805.8,1805.6,8.4849735]
[1746447547740,1.10754,1805.7,1805.6,8.4849735]
[1746447548131,3.732,1805.7,1805.6,8.4849735]
[1746447549139,2.76372,1805.8,1805.7,1.10754]
[1746447549340,1.6562,1805.8,1805.7,1.10754]
[1746447551040,0.8655,1805.8,1805.7,1.10754]
[1746447551233,9.58340993,1805.9,1805.7,1.10754]
[1746447551234,9.58340993,1805.9,1805.8,1.10748]
[1746447551642,9.58340993,1805.9,1805.8,2.81378]
[1746447552543,3.69940993,1805.9,1805.8,2.81378]
[1746447553644,5.5491149,1806.0,1805.8,2.81378]
[1746447553645,1.10737,1806.0,1805.9,1.10742]
[1746447553844,6.03314,1806.1,1805.9,1.10742]
[1746447554048,4.9258,1806.1,1806.0,1.10736]
[1746447555248,6.0331,1806.1,1806.0,1.10736]
[1746447555650,6.0331,1806.1,1805.9,1.10738]
[1746447555845,1.10742,1805.9,1805.7,3.2078]
[1746447556045,1.10738,1806.0,1805.9,1.1074]
[1746447556542,1.10738,1806.0,1805.8,1.10744]
[1746447556742,1.10738,1806.0,1805.9,1.10742]
[1746447556943,1.10738,1806.0,1805.8,1.10742]
[1746447557243,1.10738,1806.0,1805.9,1.10742]
[1746447558148,1.10743,1805.9,1805.8,1.10743]
[1746447558455,1.10741,1806.0,1805.9,1.10741]
[1746447558954,1.10745,1805.9,1805.8,1.10744]
[1746447559249,4.31525,1805.9,1805.8,1.10744]
[1746447559453,3.2078,1805.9,1805.8,1.10744]
[1746447559749,4.31522,1805.9,1805.8,1.10744]
[1746447559950,4.31527,1805.9,1805.8,1.10748]
[1746447560151,8.04727,1805.9,1805.8,1.10748]
[1746447561155,4.31527,1805.9,1805.8,1.10748]
[1746447561649,1.10751,1805.8,1805.7,1.10749]
[1746447563353,4.31527,1805.9,1805.8,1.10748]
[1746447564153,3.69940993,1806.0,1805.9,1.10742]
[1746447564341,4.80676993,1806.0,1805.9,1.10742]
[1746447565154,1.10748,1805.9,1805.8,1.10744]
[1746447565354,1.10754,1805.8,1805.7,1.1075]
[1746447565958,1.89994,1805.8,1805.7,1.1075]
[1746447566149,0.7924,1805.8,1805.7,1.1075]
[1746447566459,3.69940993,1805.9,1805.8,1.10748]
[1746447566655,5.30200993,1805.9,1805.8,1.10748]
[1746447567857,1.6026,1805.9,1805.8,1.10748]
[1746447569760,2.71002,1805.9,1805.8,1.10748]
[1746447570360,1.10748,1805.8,1805.7,2.8332]
[1746447570551,2.83168,1805.8,1805.7,2.8332]
[1746447570752,2.83168,1805.8,1805.7,1.1075]
[1746447570960,2.83168,1805.8,1805.5,4.31541]
[1746447570961,1.1076,1805.6,1805.5,4.31541]
[1746447571459,1.10767,1805.5,1805.4,2.67248]
[1746447572562,2.83186,1805.6,1805.5,1.10767]
[1746447573153,1.7242,1805.6,1805.5,1.10767]
[1746447573354,2.8318,1805.6,1805.5,1.10767]
[1746447573561,1.7242,1805.6,1805.5,1.10767]
[1746447573863,6.53120993,1805.6,1805.5,1.10767]
[1746447574060,5.42360993,1805.6,1805.5,1.10767]
[1746447574262,5.42360993,1805.6,1805.3,5.97723]
[1746447574461,1.6214,1805.5,1805.4,1.10773]
[1746447575160,1.10783,1805.3,1804.9,1.10803]
[1746447575358,1.5927,1805.2,1805.1,1.10791]
[1746447576459,3.2078,1805.5,1805.4,1.10773]
[1746447576662,4.31547,1805.5,1805.4,1.10773]
[1746447576858,4.8005,1805.5,1805.4,1.10773]
[1746447577762,8.49990993,1805.5,1805.4,1.10773]
[1746447578261,9.60757993,1805.5,1805.4,1.10773]
[1746447578563,3.69940993,1805.5,1805.4,1.10773]
[1746447578764,3.69940993,1805.5,1805.4,1.92823]
[1746447578965,3.69940993,1805.5,1805.4,10.13603]
[1746447579163,3.69940993,1805.5,1805.4,13.86803]
[1746447580357,2.50115993,1805.5,1805.4,13.86803]
[1746447580564,9.93e-06,1805.5,1805.4,13.86803]
[1746447581166,7.36712327,1805.7,1805.6,1.1076]
[1746447581369,5.53988421,1806.2,1806.1,1.1073]
[1746447581761,5.53988421,1806.2,1806.1,4.3151]
[1746447582155,5.53988421,1806.2,1806.1,6.7068]
[1746447582560,4.24216421,1806.2,1806.1,6.7068]
[1746447582761,9.21124191,1806.4,1806.3,1.10718]
[1746447582956,9.21124191,1806.4,1806.3,7.95298]
[1746447585259,14.53318763,1806.8,1806.7,1.10693]
[1746447585260,1.6568,1806.8,1806.7,1.10693]
[1746447585662,9.8646,1806.8,1806.4,1.7333]
[1746447585867,5.97153,1806.8,1806.6,1.10698]
[1746447586169,1.10693,1806.7,1806.5,1.107]
[1746447586361,1.6447,1806.6,1806.5,1.107]
[1746447586562,2.4858,1806.6,1806.5,1.107]
[1746447587169,6.2178,1806.6,1806.5,1.107]
[1746447589166,3.732,1806.6,1806.5,1.107]
[1746447589769,3.732,1806.6,1806.5,2.6888]
[1746447591967,3.732,1806.6,1806.5,3.5342]
[1746447592165,0.9452,1806.9,1806.8,1.10687]
[1746447592666,2.6147,1806.9,1806.8,1.10687]
[1746447593169,6.3467,1806.9,1806.8,1.10687]
[1746447593870,7.45355,1806.9,1806.7,1.1069]
[1746447594071,1.7312,1806.8,1806.7,1.1069]
[1746447595173,5.4632,1806.8,1806.7,1.1069]
[1746447595471,6.57007,1806.8,1806.7,1.1069]
[1746447595672,5.4632,1806.8,1806.7,1.1069]
[1746447596171,6.57007,1806.8,1806.7,1.1069]
[1746447596871,1.10694,1806.7,1806.6,1.10694]
[1746447597171,6.46044,1806.7,1806.6,1.10694]
[1746447597566,5.42854525,1806.7,1806.6,1.10694]
[1746447598173,6.53547525,1806.7,1806.6,1.10694]
[1746447599274,1.10702,1806.6,1806.5,1.10702]
[1746447599470,1.10707,1806.5,1806.4,1.10707]
[1746447599774,1.10714,1806.4,1806.3,1.10713]
[1746447599973,1.6026,1806.4,1806.3,1.10713]
[1746447600174,5.3346,1806.4,1806.3,1.10713]
[1746447600769,5.40964525,1806.4,1806.3,1.10713]
[1746447601277,6.51675525,1806.4,1806.3,1.10713]
[1746447601775,1.10718,1806.3,1806.2,1.10719]
[1746447601976,2.70978,1806.3,1806.2,1.10719]
[1746447602272,6.44178,1806.3,1806.2,1.10719]
[1746447602676,6.51682525,1806.3,1806.2,1.10719]
[1746447604175,5.40964525,1806.3,1806.2,1.10719]
[1746447604868,6.51682525,1806.3,1806.2,1.10719]
[1746447605068,5.40964525,1806.3,1806.2,1.10719]
[1746447605275,6.51682525,1806.3,1806.2,1.10719]
[1746447605664,1.10724,1806.2,1806.1,2.78824]
[1746447605869,1.10724,1806.2,1806.0,3.2078]
[1746447605870,1.1073,1806.1,1806.0,3.2078]
[1746447606173,1.9152,1806.1,1806.0,4.31516]
[1746447606365,3.4794,1806.1,1806.0,4.31516]
[1746447606766,3.55444525,1806.1,1806.0,3.2078]
[1746447607173,7.28644525,1806.1,1806.0,3.2078]
[1746447607370,1.10749,1805.8,1805.7,1.1075]
[1746447607876,0.07504525,1805.8,1805.7,1.1075]
[1746447608178,3.28584525,1805.8,1805.7,1.1075]
[1746447609781,4.39332525,1805.8,1805.7,1.1075]
[1746447610171,3.28584525,1805.8,1805.7,1.1075]
[1746447611081,3.28584525,1805.8,1805.6,2.80525]
[1746447611281,1.6254,1805.7,1805.6,2.80525]
[1746447611780,2.73294,1805.7,1805.6,1.10755]
[1746447611974,1.70044525,1805.7,1805.5,12.82036181]
[1746447612183,1.7,1805.6,1805.4,2.75168]
[1746447612380,2.80763,1805.6,1805.4,2.75168]
[1746447612574,0.8484,1805.5,1805.4,2.75168]
[1746447612775,2.5484,1805.5,1805.4,1.10768]
[1746447612976,2.62344525,1805.5,1805.4,1.10768]
[1746447613383,2.62344525,1805.5,1805.4,2.75168]
[1746447615685,3.73111525,1805.5,1805.4,2.75168]
[1746447615979,2.62344525,1805.5,1805.4,2.75168]
[1746447617385,3.73111525,1805.5,1805.4,2.75168]
[1746447617882,2.62344525,1805.5,1805.4,2.75168]
[1746447618681,3.73111525,1805.5,1805.4,2.75168]
[1746447619080,2.62344525,1805.5,1805.4,2.75168]
[1746447620584,3.73111525,1805.5,1805.4,2.75168]
[1746447622485,0.07504525,1805.5,1805.4,2.75168]
[1746447622688,0.07504525,1805.5,1805.4,3.54408]
[1746447622880,0.07504525,1805.5,1805.4,11.75188]
[1746447624087,0.07504525,1805.5,1805.4,6.75188]
[1746447629090,0.07504525,1805.5,1805.4,10.38988]
[1746447646615,0.07504525,1805.5,1805.4,1.10768]
[1746447646810,6.64194525,1805.5,1805.4,1.10768]
[1746447647015,7.45554525,1805.5,1805.4,1.10768]
[1746447647315,11.18754525,1805.5,1805.4,1.10768]
[1746447648112,6.18754525,1805.5,1805.4,1.10768]
[1746447648409,2.45554525,1805.5,1805.4,1.10768]
[1746447649218,6.18754525,1805.5,1805.4,1.10768]
[1746447649717,1.10774,1805.4,1805.2,6.8438]
[1746447649918,0.07504525,1805.3,1805.2,7.9516]
[1746447650317,1.75054525,1805.3,1805.2,7.9516]
[1746447651421,1.75054525,1805.3,1805.2,4.3156]
[1746447658631,1.75054525,1805.3,1805.2,1.1078]
[1746447663438,1.6755,1805.3,1805.2,1.1078]
[1746447663639,1.82559015,1805.3,1805.2,1.1078]
[1746447665439,1.82559015,1805.3,1805.2,2.7376]
[1746447667241,1.82559015,1805.3,1805.2,1.1078]
[1746447668742,0.15009015,1805.3,1805.2,11.0057]
[1746447668945,5.54280689,1805.6,1805.5,1.10767]
[1746447669438,4.24948689,1805.6,1805.5,1.10767]
[1746447669636,4.24948689,1805.6,1805.5,2.79777]
[1746447670239,4.24948689,1805.6,1805.5,6.52977]
[1746447671545,5.84906191,1805.7,1805.6,1.1076]